bitfinex/quotes_BTCUSD_20260215
["timestamp","ask_amount","ask_price","bid_price","bid_amount"]
[1771128716822,0.07145313,70370.0,70361.0,0.07106111]
[1771128717246,0.07105401,70369.0,70360.0,0.40540325]
[1771128717449,0.07105401,70369.0,70360.0,0.07118298]
[1771128717647,0.07105401,70369.0,70361.0,0.07106204]
[1771128718255,0.07105595,70368.0,70360.0,0.07118303]
[1771128718660,0.0004,70370.0,70360.0,0.024519]
[1771128718869,0.0004,70370.0,70360.0,0.00012]
[1771128719063,0.0004,70370.0,70366.0,0.07105677]
[1771128719250,0.0004,70370.0,70365.0,0.07105793]
[1771128719898,0.0004,70370.0,70362.0,0.07105909]
[1771128720098,0.0004,70370.0,70363.0,0.07105989]
[1771128720261,0.0004,70370.0,70360.0,0.00012]
[1771128720478,0.0004,70370.0,70340.0,0.34635599]
[1771128720479,0.00012,70360.0,70349.0,1e-08]
[1771128720685,0.07107173,70352.0,70340.0,0.00012]
[1771128720883,0.09516882,70351.0,70343.0,0.07141007]
[1771128721056,0.58219153,70348.0,70343.0,0.00032982]
[1771128721522,0.58219153,70347.0,70343.0,0.00032982]
[1771128721758,0.07106704,70357.0,70348.0,0.07107424]
[1771128722028,0.07107092,70353.0,70344.0,0.07107905]
[1771128722231,0.02409653,70355.0,70343.0,0.00032982]
[1771128722410,0.67736393,70348.0,70343.0,0.00032982]
[1771128722617,0.02409653,70348.0,70343.0,0.00032982]
[1771128722821,0.02409653,70355.0,70347.0,0.07107544]
[1771128723025,0.00012,70360.0,70358.0,0.07106512]
[1771128723200,0.00012,70380.0,70360.0,0.33434027]
[1771128723401,0.00012,70380.0,70370.0,0.28421005]
[1771128723609,0.00012,70380.0,70372.0,0.07105018]
[1771128723945,0.07104434,70379.0,70370.0,0.07105298]
[1771128724141,0.00012,70380.0,70371.0,0.07105115]
[1771128724345,0.07144507,70378.0,70370.0,0.07105213]
[1771128724550,0.00083339,70378.0,70368.0,0.3340724]
[1771128724749,0.0710461,70377.0,70368.0,0.3340724]
[1771128724952,0.00083339,70378.0,70365.0,0.07105623]
[1771128725163,0.07104873,70375.0,70366.0,0.07105704]
[1771128725368,0.00083339,70378.0,70362.0,0.024399]
[1771128725369,0.00083339,70378.0,70372.0,0.07105085]
[1771128725568,0.00083339,70378.0,70370.0,0.07105262]
[1771128725740,0.00083339,70378.0,70369.0,0.07105225]
[1771128725741,0.00083339,70378.0,70366.0,0.07105678]
[1771128725943,0.0710493,70374.0,70365.0,0.41149786]
[1771128726147,0.00083339,70378.0,70367.0,0.28422038]
[1771128726347,0.00083339,70378.0,70368.0,0.33422027]
[1771128726529,0.07103984,70384.0,70374.0,0.0710481]
[1771128726936,0.09553453,70385.0,70374.0,0.0710481]
[1771128727135,0.07103887,70384.0,70374.0,0.0710481]
[1771128727329,0.07103887,70384.0,70375.0,0.07104795]
[1771128727573,0.58259153,70385.0,70370.0,0.000165]
[1771128727800,0.07104586,70378.0,70370.0,0.000165]
[1771128728014,0.07104775,70376.0,70370.0,0.000165]
[1771128728190,0.65323658,70378.0,70370.0,0.000165]
[1771128728391,0.58219153,70378.0,70373.0,0.07104898]
[1771128728569,0.58219153,70378.0,70370.0,0.000165]
[1771128728794,0.07104705,70376.0,70370.0,0.000165]
[1771128728945,0.65323739,70378.0,70370.0,0.000165]
[1771128729338,0.07104598,70377.0,70370.0,0.000165]
[1771128729545,0.07105046,70373.0,70370.0,0.000165]
[1771128729789,0.58259153,70378.0,70370.0,0.000165]
[1771128729966,0.07105092,70373.0,70363.0,0.41149916]
[1771128730989,0.07104907,70374.0,70365.0,0.07105716]
[1771128731388,0.07105011,70373.0,70365.0,0.07105716]
[1771128732061,0.07104891,70376.0,70364.0,0.26134357]
[1771128732262,0.07104993,70374.0,70365.0,0.07105726]
[1771128732711,0.07104753,70376.0,70365.0,0.07105726]
[1771128732912,0.07104989,70374.0,70365.0,0.07105726]
[1771128733480,0.07105002,70373.0,70365.0,0.07105726]
[1771128733679,0.86677389,70378.0,70364.0,0.26134357]
[1771128733680,0.58259153,70378.0,70364.0,0.26134357]
[1771128733996,0.07104973,70374.0,70365.0,0.07105722]
[1771128734200,0.07104973,70374.0,70366.0,0.07105669]
[1771128735174,0.0710503,70373.0,70365.0,0.07105787]
[1771128735586,0.07104997,70373.0,70364.0,0.33240236]
[1771128735824,0.07105282,70371.0,70364.0,0.26134357]
[1771128736027,0.07105282,70371.0,70363.0,0.07105985]
[1771128736204,0.07105282,70371.0,70363.0,0.41145985]
[1771128736414,0.07105282,70371.0,70363.0,0.07105985]
[1771128736615,0.07105481,70369.0,70362.0,0.0002]
[1771128736837,0.07105369,70370.0,70362.0,0.07126092]
[1771128737147,0.07105409,70369.0,70362.0,5.21e-05]
[1771128737311,0.07105369,70370.0,70363.0,0.0002]
[1771128737508,0.071053,70370.0,70363.0,0.0002]
[1771128738286,0.071053,70370.0,70363.0,0.07126005]
[1771128738694,0.02458943,70371.0,70363.0,0.0002]
[1771128739109,0.07104916,70374.0,70363.0,0.0002]
[1771128739411,0.07105004,70373.0,70365.0,0.07105723]
[1771128739569,0.07105004,70373.0,70364.0,0.07105906]
[1771128739772,0.07105144,70372.0,70364.0,0.07105906]
[1771128739979,0.07105351,70370.0,70363.0,0.0002]
[1771128740374,0.07105118,70372.0,70363.0,0.0002]
[1771128740375,0.07105454,70369.0,70363.0,0.0002]
[1771128740766,0.55705082,70370.0,70360.0,0.00012]
[1771128740992,0.07105632,70367.0,70360.0,0.33434027]
[1771128741871,0.55705082,70368.0,70360.0,0.00012]
[1771128742073,0.55705082,70358.0,70350.0,0.34052]
[1771128742300,0.07106733,70356.0,70350.0,0.34095339]
[1771128742476,0.09565588,70357.0,70350.0,0.41202639]
[1771128742674,0.02458943,70369.0,70351.0,0.02284042]
[1771128742876,0.02458943,70369.0,70359.0,0.33422027]
[1771128743153,0.58164025,70369.0,70359.0,0.33422027]
[1771128743477,0.07105567,70368.0,70360.0,0.07106226]
[1771128743682,0.07105567,70368.0,70359.0,0.40528241]
[1771128743881,0.07105567,70368.0,70360.0,0.07106217]
[1771128744088,0.34052,70370.0,70360.0,0.28425224]
[1771128744288,0.00012,70370.0,70364.0,0.07105835]
[1771128744467,0.00012,70370.0,70360.0,0.02284042]
[1771128744810,0.00012,70370.0,70363.0,0.07105978]
[1771128745557,0.07105469,70369.0,70361.0,0.07106147]
[1771128745789,0.55717082,70370.0,70359.0,0.67462027]
[1771128746005,0.07105884,70365.0,70359.0,0.3404]
[1771128746231,0.07105672,70367.0,70360.0,0.33422027]
[1771128746452,0.07105757,70366.0,70360.0,0.33422027]
[1771128746677,0.07105843,70365.0,70360.0,0.33422027]
[1771128747147,0.07105843,70365.0,70360.0,0.33442027]
[1771128747827,0.02458943,70368.0,70351.0,0.34044]
[1771128748026,0.00012,70370.0,70355.0,0.07106729]
[1771128748027,0.07106042,70363.0,70355.0,0.07106729]
[1771128748241,0.07105914,70364.0,70356.0,0.07106706]
[1771128748622,0.07106012,70363.0,70356.0,0.07106706]
[1771128748830,0.07106012,70363.0,70355.0,0.07106729]
[1771128749626,0.07105936,70364.0,70356.0,0.07106671]
[1771128749837,0.07106033,70363.0,70355.0,0.07106785]
[1771128750078,0.34044,70369.0,70353.0,0.07106989]
[1771128750383,0.07106296,70361.0,70353.0,0.07106989]
[1771128751409,0.07030969,70361.0,70353.0,0.07106989]
[1771128751637,0.07106015,70363.0,70353.0,4.5e-05]
[1771128752045,0.07106191,70362.0,70354.0,0.07106894]
[1771128752432,0.07106183,70362.0,70354.0,0.07106894]
[1771128752639,0.07106229,70361.0,70353.0,0.07111496]
[1771128752836,0.07106015,70363.0,70354.0,0.07106897]
[1771128752837,0.07106156,70362.0,70354.0,0.07106897]
[1771128753942,0.09564864,70364.0,70353.0,4.5e-05]
[1771128754118,0.07106216,70361.0,70353.0,4.5e-05]
[1771128754525,0.07106205,70363.0,70353.0,4.5e-05]
[1771128754672,0.09565035,70364.0,70356.0,0.07106638]
[1771128755097,0.07106079,70363.0,70355.0,0.07106737]
[1771128755293,0.09564851,70364.0,70356.0,0.07106614]
[1771128755497,0.07106022,70363.0,70356.0,0.07106614]
[1771128755772,0.09564942,70364.0,70356.0,0.07106614]
[1771128755902,0.02458943,70364.0,70356.0,0.07106712]
[1771128756107,0.07106486,70359.0,70353.0,0.000245]
[1771128756325,0.02458943,70362.0,70353.0,0.000245]
[1771128756545,0.09565089,70362.0,70354.0,0.07106846]
[1771128757099,0.0710621,70361.0,70354.0,0.07106846]
[1771128757953,0.07106427,70359.0,70353.0,0.000245]
[1771128758249,0.02458943,70359.0,70353.0,0.000245]
[1771128758631,0.07105514,70368.0,70353.0,0.000245]
[1771128758837,0.02498943,70378.0,70360.0,0.00012]
[1771128759035,0.02498943,70378.0,70369.0,0.07105401]
[1771128759206,0.07104666,70377.0,70368.0,0.33409685]
[1771128759406,0.07104697,70376.0,70367.0,0.07105551]
[1771128759606,0.07104697,70376.0,70368.0,0.07105491]
[1771128759828,0.07104615,70377.0,70369.0,0.07105391]
[1771128760031,0.07104634,70377.0,70369.0,0.07105391]
[1771128760235,0.02498943,70378.0,70367.0,0.0710552]
[1771128760568,0.07104696,70376.0,70368.0,0.07105476]
[1771128760721,0.07104696,70376.0,70364.0,0.02284042]
[1771128760722,0.07104696,70376.0,70367.0,0.07105533]
[1771128761117,0.07105145,70372.0,70364.0,0.02284042]
[1771128761319,0.00052,70380.0,70360.0,0.61846727]
[1771128761320,0.00052,70380.0,70379.0,0.07104391]
[1771128761561,0.00045,70386.0,70379.0,0.0710438]
[1771128761764,0.07104203,70381.0,70374.0,0.02441545]
[1771128761919,0.07104005,70383.0,70375.0,0.07104716]
[1771128762269,0.07143874,70385.0,70371.0,0.34044]
[1771128762470,0.07104422,70379.0,70371.0,0.41149185]
[1771128762628,0.07104598,70377.0,70371.0,0.34044]
[1771128762845,0.28415658,70384.0,70371.0,0.34044]
[1771128763055,0.07104899,70374.0,70370.0,0.00012]
[1771128763278,0.0004,70378.0,70370.0,0.07117267]
[1771128763478,0.07104677,70377.0,70370.0,0.00012]
[1771128763646,0.0004,70378.0,70370.0,0.00012]
[1771128764046,0.0004,70378.0,70371.0,0.07105122]
[1771128764249,0.07144505,70378.0,70370.0,0.07117273]
[1771128764460,0.0004,70378.0,70375.0,0.07104746]
[1771128764834,0.0004,70378.0,70376.0,0.07104664]
[1771128765109,0.0004,70378.0,70375.0,0.07104746]
[1771128765471,0.0004,70378.0,70374.0,0.07104867]
[1771128766086,0.0004,70378.0,70370.0,0.00012]
[1771128766308,0.09488325,70376.0,70370.0,0.00012]
[1771128766614,0.0004,70378.0,70371.0,0.07105197]
[1771128766813,0.0004,70378.0,70372.0,0.07105034]
[1771128766973,0.0004,70378.0,70370.0,0.07117199]
[1771128767158,0.0004,70378.0,70370.0,0.00012]
[1771128767363,0.0004,70378.0,70371.0,0.0710513]
[1771128767922,0.07144493,70378.0,70371.0,0.0710513]
[1771128768282,0.09528113,70378.0,70371.0,0.0710513]
[1771128768702,0.0242362,70378.0,70371.0,0.0710513]
[1771128769873,0.0242362,70376.0,70370.0,0.07117106]
[1771128770234,0.0242362,70376.0,70371.0,0.07105199]
[1771128770442,0.0242362,70376.0,70373.0,0.0710493]
[1771128770869,1e-08,70385.0,70377.0,0.07104593]
[1771128771215,0.0004,70388.0,70383.0,0.07103791]
[1771128771344,0.00052311,70388.0,70381.0,0.07104129]
[1771128771548,0.00052311,70388.0,70382.0,0.07104069]
[1771128773447,0.07103584,70387.0,70376.0,0.02324005]
[1771128773645,0.02435931,70388.0,70375.0,0.3404]
[1771128773861,0.58837332,70387.0,70370.0,0.33421685]
[1771128774078,0.09487502,70385.0,70377.0,0.07104494]
[1771128774550,0.0238362,70385.0,70373.0,0.28419872]
[1771128774767,0.0238362,70385.0,70381.0,0.07104135]
[1771128775004,0.0238362,70385.0,70379.0,0.060029]
[1771128775186,0.0238362,70384.0,70378.0,0.07104421]
[1771128775764,0.09487573,70384.0,70373.0,0.07104941]
[1771128775959,0.87253678,70383.0,70371.0,0.07105195]
[1771128776211,0.07104496,70378.0,70371.0,0.07105195]
[1771128776591,0.09488022,70379.0,70372.0,0.07105079]
[1771128776796,0.0710473,70376.0,70370.0,0.00012]
[1771128777136,0.09488635,70373.0,70365.0,0.41141714]
[1771128777312,0.09488635,70373.0,70365.0,0.34036]
[1771128777668,0.07105323,70370.0,70363.0,0.07106007]
[1771128777781,0.0238362,70369.0,70362.0,0.07110575]
[1771128777987,0.0238362,70369.0,70363.0,0.07105975]
[1771128778583,0.0710543,70369.0,70362.0,0.07110575]
[1771128778942,0.071163,70380.0,70371.0,0.07105191]
[1771128779098,0.07116294,70380.0,70372.0,0.07105039]
[1771128779299,0.09499914,70380.0,70372.0,0.07105039]
[1771128779706,0.09488024,70379.0,70371.0,0.07104998]
[1771128780045,0.0238362,70379.0,70365.0,0.02324005]
[1771128780194,0.0238362,70379.0,70363.0,0.58270608]
[1771128780195,0.34076,70386.0,70370.0,0.00012]
[1771128780397,0.07103791,70385.0,70374.0,0.02324005]
[1771128780612,0.07103791,70385.0,70378.0,0.07104414]
[1771128780848,0.0004,70386.0,70381.0,0.07104189]
[1771128781047,0.0004,70386.0,70374.0,0.02324005]
[1771128781250,0.07103855,70385.0,70377.0,0.07104577]
[1771128781480,0.0004,70386.0,70375.0,0.07104795]
[1771128781713,0.0003165,70390.0,70381.0,0.2841661]
[1771128781843,0.0003165,70390.0,70378.0,0.33409685]
[1771128781844,0.07134934,70390.0,70378.0,0.02324005]
[1771128782042,0.07134934,70390.0,70382.0,0.07104005]
[1771128782043,0.07103385,70389.0,70382.0,0.07104005]
[1771128782239,0.0003165,70390.0,70379.0,0.28417391]
[1771128782454,0.07134956,70390.0,70382.0,0.07104001]
[1771128782677,0.07103678,70387.0,70378.0,0.00012311]
[1771128782895,0.0004,70391.0,70380.0,0.00012]
[1771128783054,0.07103369,70390.0,70381.0,0.07104168]
[1771128783259,0.0004,70391.0,70381.0,0.07104163]
[1771128783436,0.0004845,70410.0,70380.0,0.00012]
[1771128783647,1e-08,70410.0,70409.0,0.07101364]
[1771128783970,0.07112341,70420.0,70407.0,0.07101522]
[1771128784226,0.07112341,70420.0,70406.0,0.02324005]
[1771128784227,0.07112269,70420.0,70409.0,0.07101275]
[1771128784539,0.07112303,70420.0,70408.0,0.0710144]
[1771128784728,0.07100531,70418.0,70408.0,0.07101407]
[1771128785108,0.07100531,70418.0,70407.0,0.07101566]
[1771128785441,0.65962604,70420.0,70402.0,0.0710207]
[1771128785643,0.07100458,70418.0,70400.0,0.61829565]
[1771128785795,0.58862326,70420.0,70401.0,0.02324005]
[1771128785995,0.07100747,70416.0,70407.0,0.07101551]
[1771128786222,0.0238362,70419.0,70402.0,0.0710207]
[1771128786419,0.07125282,70420.0,70412.0,0.07101014]
[1771128786871,0.66002614,70420.0,70412.0,0.07101014]
[1771128787617,0.00064994,70420.0,70416.0,0.07100571]
[1771128788050,0.00064994,70420.0,70414.0,0.07100835]
[1771128788244,0.0716533,70420.0,70411.0,0.07101067]
[1771128788494,0.0716533,70420.0,70412.0,0.07100963]
[1771128788644,5e-05,70418.0,70409.0,0.07101364]
[1771128788853,5e-05,70418.0,70408.0,0.02324005]
[1771128789069,5e-05,70418.0,70416.0,0.07100632]
[1771128789231,5e-05,70418.0,70414.0,0.0710079]
[1771128789431,5e-05,70418.0,70410.0,0.07101214]
[1771128789933,0.07105484,70418.0,70410.0,0.07101242]
[1771128790132,0.07100625,70417.0,70407.0,0.07101377]
[1771128790337,0.0238362,70417.0,70392.0,0.02324005]
[1771128790532,5e-05,70418.0,70390.0,0.00012]
[1771128790533,0.07102241,70401.0,70390.0,0.00012]
[1771128790737,0.00012,70410.0,70390.0,0.00012]
[1771128790738,0.09486046,70399.0,70390.0,0.07103185]
[1771128790954,0.58842332,70398.0,70391.0,0.07103147]
[1771128791162,0.58842332,70398.0,70392.0,0.07103062]
[1771128791658,0.58842332,70398.0,70389.0,0.07103373]
[1771128791892,0.65944809,70398.0,70390.0,0.07103281]
[1771128792086,0.07102785,70395.0,70387.0,0.07103519]
[1771128792540,0.07102685,70396.0,70388.0,0.07103482]
[1771128792746,0.07102717,70396.0,70388.0,0.07103409]
[1771128793492,0.07102684,70396.0,70389.0,0.07103382]
[1771128793802,0.07102684,70396.0,70388.0,0.07103304]
[1771128794146,0.65945006,70398.0,70381.0,0.07104175]
[1771128794147,0.54852423,70395.0,70381.0,0.07104175]
[1771128794345,0.61955893,70389.0,70381.0,0.07104175]
[1771128794564,0.54852423,70389.0,70380.0,0.00012]
[1771128794757,0.07103553,70388.0,70380.0,0.07128562]
[1771128795191,0.34028,70389.0,70384.0,0.07103832]
[1771128795529,0.34028,70389.0,70380.0,0.00024311]
[1771128795729,0.34028,70389.0,70384.0,0.07103871]
[1771128796182,0.34028,70389.0,70384.0,0.0710388]
[1771128796532,0.34028,70389.0,70384.0,0.07103817]
[1771128796793,0.41131448,70389.0,70381.0,0.0710419]
[1771128796981,0.07103504,70388.0,70381.0,0.0710419]
[1771128797157,0.34028,70389.0,70383.0,0.07103888]
[1771128797360,0.34028,70389.0,70380.0,0.00024311]
[1771128797535,0.07103577,70388.0,70380.0,0.00024311]
[1771128797974,0.0710361,70387.0,70380.0,0.07128513]
[1771128798174,0.0710361,70387.0,70380.0,0.07128567]
[1771128798704,0.07103493,70388.0,70380.0,0.00024311]
[1771128798948,0.07103584,70387.0,70380.0,0.07128588]
[1771128799163,0.34028,70389.0,70380.0,0.00024311]
[1771128799415,0.43128,70398.0,70381.0,0.02287135]
[1771128799622,0.43128,70398.0,70388.0,0.07103472]
[1771128799623,0.34032,70398.0,70388.0,0.07103472]
[1771128799790,0.34032,70398.0,70387.0,0.07103564]
[1771128800167,0.34032,70398.0,70386.0,0.02287135]
[1771128800370,0.00012,70400.0,70387.0,0.54684822]
[1771128800571,0.00012,70400.0,70381.0,0.0002]
[1771128800779,0.07103148,70392.0,70384.0,0.07103873]
[1771128801204,0.07102994,70393.0,70385.0,0.07103779]
[1771128801379,0.07103095,70392.0,70385.0,0.07103779]
[1771128801602,0.07103095,70392.0,70384.0,0.07103868]
[1771128801813,0.0710319,70391.0,70384.0,0.07103868]
[1771128802207,0.0710307,70393.0,70384.0,0.07103868]
[1771128802411,0.07102983,70393.0,70386.0,0.07103616]
[1771128802615,0.00743204,70393.0,70386.0,0.07103616]
[1771128802852,0.42608642,70409.0,70384.0,0.07103868]
[1771128802996,0.54852423,70424.0,70401.0,0.54684822]
[1771128803192,0.0710046,70418.0,70409.0,0.07101285]
[1771128803447,0.07100503,70418.0,70409.0,0.07101285]
[1771128803754,0.07100571,70417.0,70409.0,0.07101329]
[1771128803956,0.07100996,70413.0,70404.0,0.0710179]
[1771128804160,0.54904423,70420.0,70402.0,0.43128]
[1771128804161,0.07101255,70411.0,70402.0,0.34032]
[1771128804317,0.00012992,70411.0,70404.0,0.07101785]
[1771128805403,0.02376373,70428.0,70404.0,0.02287135]
[1771128805533,0.0004,70428.0,70423.0,0.07099952]
[1771128805732,0.07099653,70426.0,70423.0,0.00012992]
[1771128806336,0.07099561,70427.0,70423.0,0.00012992]
[1771128807159,0.00045,70428.0,70423.0,0.00012992]
[1771128807852,0.0714445,70428.0,70423.0,0.00012992]
[1771128808102,0.00045,70428.0,70423.0,0.07112907]
[1771128808261,0.00045,70428.0,70423.0,0.02300127]
[1771128808919,0.07128528,70432.0,70423.0,0.02300127]
[1771128809083,0.07128528,70432.0,70424.0,0.07099852]
[1771128809289,0.0002945,70432.0,70424.0,0.07099852]
[1771128809492,0.07128519,70432.0,70424.0,0.07099852]
[1771128809700,0.07099167,70431.0,70423.0,0.09400078]
[1771128810195,0.07128519,70432.0,70423.0,0.00012992]
[1771128810196,0.07099262,70430.0,70423.0,0.00012992]
[1771128810397,0.07099262,70430.0,70422.0,0.07100042]
[1771128810597,0.07112251,70430.0,70423.0,0.07099952]
[1771128810800,0.00012989,70430.0,70427.0,0.07099525]
[1771128811008,0.00012989,70430.0,70418.0,0.07100356]
[1771128811205,0.00012989,70430.0,70425.0,0.0709968]
[1771128811409,0.07099446,70429.0,70420.0,0.07100164]
[1771128811592,0.07099446,70429.0,70419.0,0.0938744]
[1771128811975,0.07099446,70429.0,70420.0,0.07100255]
[1771128812259,0.07099446,70429.0,70421.0,0.07100128]
[1771128812390,0.00012989,70430.0,70424.0,0.07099776]
[1771128812591,0.00012,70440.0,70418.0,0.02287135]
[1771128812799,0.54852423,70447.0,70430.0,0.02299135]
[1771128812998,0.54852423,70452.0,70436.0,0.02287135]
[1771128813541,0.07097157,70451.0,70436.0,0.02287135]
[1771128813764,0.0709688,70454.0,70439.0,0.02287135]
[1771128813923,0.09433001,70456.0,70442.0,0.07097965]
[1771128814119,0.09433001,70456.0,70440.0,0.02287135]
[1771128814120,0.07096845,70454.0,70443.0,0.34024]
[1771128814322,0.02336373,70456.0,70443.0,0.34024]
[1771128814586,0.54852423,70447.0,70443.0,0.33999008]
[1771128814791,0.07097285,70450.0,70443.0,0.33999008]
[1771128814963,0.54852423,70451.0,70443.0,0.33999008]
[1771128815346,0.07095937,70463.0,70444.0,0.02287135]
[1771128815590,0.02336373,70455.0,70444.0,0.07097799]
[1771128815911,0.57188796,70455.0,70443.0,0.33999008]
[1771128816029,0.64285609,70455.0,70444.0,0.07097811]
[1771128816234,0.54852423,70453.0,70444.0,0.07097811]
[1771128816480,0.54852423,70453.0,70442.0,0.3402]
[1771128817188,0.0003254,70476.0,70433.0,0.54684822]
[1771128817396,0.54852423,70471.0,70451.0,0.02287135]
[1771128817588,0.54852423,70466.0,70452.0,0.3402]
[1771128817749,0.54852423,70466.0,70455.0,0.07096713]
[1771128817944,0.54852423,70466.0,70452.0,0.36307135]
[1771128818167,0.54852423,70469.0,70452.0,0.36303135]
[1771128818368,0.00824705,70470.0,70452.0,0.36303135]
[1771128818571,0.07096143,70461.0,70452.0,0.36303135]
[1771128818771,0.07096008,70463.0,70452.0,0.36303135]
[1771128818934,0.619483,70464.0,70452.0,0.36303135]
[1771128819719,0.07096193,70461.0,70452.0,0.36303135]
[1771128819962,0.07097228,70451.0,70431.0,0.02287135]
[1771128820106,0.07097228,70451.0,70442.0,0.07097997]
[1771128820309,0.07097234,70450.0,70440.0,0.07098162]
[1771128820478,0.54852423,70452.0,70443.0,0.0709791]
[1771128821030,0.54852423,70452.0,70435.0,0.30682031]
[1771128821244,0.00012,70460.0,70459.0,0.07096325]
[1771128821442,0.00012,70460.0,70453.0,0.07096917]
[1771128821665,0.00012,70460.0,70453.0,0.07140213]
[1771128821973,0.00012,70460.0,70453.0,0.00043296]
[1771128822285,0.00012,70460.0,70454.0,0.07096823]
[1771128822491,0.00012,70460.0,70449.0,0.34012]
[1771128822687,0.00055288,70460.0,70456.0,0.07096587]
[1771128822908,0.00055288,70460.0,70450.0,0.02437017]
[1771128822909,0.00055288,70460.0,70455.0,0.07096698]
[1771128823143,0.00055288,70460.0,70450.0,0.09534234]
[1771128823346,0.07151528,70460.0,70451.0,0.07097131]
[1771128823549,0.07151528,70460.0,70452.0,0.07097006]
[1771128823759,0.00055288,70460.0,70449.0,0.34012]
[1771128823959,0.00055288,70460.0,70447.0,0.07097489]
[1771128823960,0.07096555,70457.0,70447.0,0.07097489]
[1771128824188,0.5602455,70459.0,70443.0,0.34012]
[1771128824367,0.0709633,70459.0,70443.0,0.34012]
[1771128824597,0.00055288,70460.0,70443.0,0.34012]
[1771128824762,0.00055288,70460.0,70451.0,0.07097113]
[1771128825166,0.00055288,70460.0,70454.0,0.07096767]
[1771128825345,0.00055288,70460.0,70450.0,0.0233925]
[1771128825542,0.00055288,70460.0,70454.0,0.07096817]
[1771128825790,0.07096443,70458.0,70450.0,0.0233925]
[1771128825968,0.00055288,70460.0,70444.0,0.28391062]
[1771128826189,0.07133177,70499.0,70490.0,0.07093123]
[1771128826381,0.07092502,70497.0,70485.0,0.17204]
[1771128826724,0.5602455,70488.0,70469.0,0.0233925]
[1771128826937,0.07094227,70480.0,70472.0,0.34008]
[1771128827147,0.5602455,70482.0,70462.0,0.0233925]
[1771128827344,0.07094705,70476.0,70467.0,0.34008]
[1771128827670,0.07094854,70474.0,70463.0,0.09088]
[1771128827875,0.63119262,70476.0,70463.0,0.09088]
[1771128828162,0.63119262,70476.0,70466.0,0.07095589]
[1771128828306,0.5602455,70481.0,70463.0,0.09088]
[1771128828491,0.07094701,70476.0,70467.0,0.07095511]
[1771128828700,0.07095151,70471.0,70458.0,0.41104394]
[1771128828900,0.00012981,70481.0,70459.0,0.07096325]
[1771128828901,0.07095318,70469.0,70459.0,0.07096325]
[1771128829195,0.5602455,70469.0,70460.0,0.0709613]
[1771128829419,0.5602455,70469.0,70461.0,0.0709612]
[1771128829629,0.5602455,70469.0,70452.0,0.34008]
[1771128829843,0.63119919,70469.0,70457.0,0.07096513]
[1771128830039,0.63119919,70469.0,70460.0,0.0709622]
[1771128830240,0.5602455,70468.0,70452.0,0.34008]
[1771128830414,0.07095318,70469.0,70450.0,0.00012]
[1771128830601,0.07096,70463.0,70452.0,0.0709702]
[1771128830805,0.5602455,70486.0,70451.0,0.70774895]
[1771128831011,0.07094115,70481.0,70462.0,0.0233925]
[1771128831213,0.5602455,70482.0,70464.0,0.0233925]
[1771128831419,0.5602455,70479.0,70462.0,0.34004]
[1771128831643,0.5602455,70479.0,70463.0,0.07095901]
[1771128831855,0.5602455,70479.0,70464.0,0.07095821]
[1771128832094,0.63118878,70479.0,70459.0,0.93879663]
[1771128832297,0.07094622,70476.0,70467.0,0.07095434]
[1771128832718,0.07094715,70475.0,70465.0,0.07095626]
[1771128833036,0.07094982,70473.0,70459.0,0.34004]
[1771128833150,0.5602455,70472.0,70470.0,0.00012]
[1771128833350,0.07095172,70471.0,70470.0,0.00012]
[1771128833567,0.63119722,70471.0,70470.0,0.00012]
[1771128834418,0.07095324,70469.0,70461.0,0.06401425]
[1771128834708,0.5602455,70471.0,70448.0,0.34004]
[1771128834908,0.07095718,70466.0,70457.0,0.07096516]
[1771128835115,0.07095718,70466.0,70458.0,0.07096424]
[1771128835538,0.5602455,70467.0,70453.0,0.07096928]
[1771128835739,0.0709562,70466.0,70446.0,0.0233925]
[1771128835946,0.07095638,70466.0,70458.0,0.07096406]
[1771128836154,0.07096029,70462.0,70446.0,0.30729608]
[1771128836364,0.33355893,70461.0,70451.0,0.07140324]
[1771128836567,0.5602455,70465.0,70452.0,0.0709703]
[1771128836780,0.28371551,70494.0,70460.0,0.4257705]
[1771128836992,0.5602455,70486.0,70454.0,0.07096829]
[1771128837192,0.00772405,70487.0,70459.0,0.28384899]
[1771128837193,0.5602455,70482.0,70459.0,0.28384899]
[1771128837398,0.07094829,70474.0,70465.0,0.07095719]
[1771128837613,0.07094829,70474.0,70461.0,0.0233925]
[1771128837614,0.07094396,70479.0,70469.0,0.07095288]
[1771128837760,0.07094623,70476.0,70467.0,0.07095508]
[1771128838403,0.07094421,70478.0,70467.0,0.07095508]
[1771128838627,0.07094513,70477.0,70462.0,0.28383984]
[1771128838829,0.07094513,70477.0,70466.0,0.07095525]
[1771128839238,0.40450302,70480.0,70469.0,0.07095246]
[1771128839437,0.07094311,70479.0,70470.0,0.0709521]
[1771128839641,0.07094311,70479.0,70462.0,0.0233925]
[1771128839811,0.33355893,70480.0,70467.0,0.07095518]
[1771128840026,0.33355893,70480.0,70465.0,0.07095697]
[1771128840350,0.33355893,70480.0,70467.0,0.07095487]
[1771128840891,0.40450149,70480.0,70471.0,0.07095017]
[1771128841098,0.89380443,70481.0,70464.0,0.0233925]
[1771128841317,0.0709439,70479.0,70470.0,0.07095177]
[1771128841536,0.07094211,70480.0,70470.0,0.07095177]
[1771128841725,0.96474594,70481.0,70468.0,0.07095416]
[1771128841944,0.07094425,70478.0,70469.0,0.07095318]
[1771128842163,0.0709431,70480.0,70470.0,0.07095124]
[1771128842376,0.40450044,70481.0,70473.0,0.07094837]
[1771128842377,0.33355893,70481.0,70473.0,0.07094837]
[1771128842587,0.9002855,70484.0,70473.0,0.07094837]
[1771128842801,0.07094479,70478.0,70469.0,0.09434472]
[1771128842941,0.07094413,70478.0,70470.0,0.07095216]
[1771128843153,0.07094441,70478.0,70470.0,0.07095207]
[1771128843359,0.07094305,70481.0,70472.0,0.07094927]
[1771128843562,0.07094009,70482.0,70472.0,0.00012981]
[1771128843765,0.07094608,70477.0,70472.0,0.00012981]
[1771128844210,0.07094608,70478.0,70472.0,0.00012981]
[1771128844371,0.0709446,70478.0,70472.0,0.00012981]
[1771128844572,0.07094616,70476.0,70472.0,0.00012981]
[1771128844837,0.07096123,70462.0,70453.0,0.07116886]
[1771128845183,0.07096382,70459.0,70453.0,0.0002]
[1771128845332,0.5602455,70462.0,70453.0,0.0002]
[1771128845864,0.00732405,70473.0,70451.0,0.57536413]
[1771128846077,0.07095755,70465.0,70456.0,0.0709655]
[1771128846257,0.33355893,70470.0,70458.0,0.0233925]
[1771128846452,0.33368862,70470.0,70451.0,0.57536413]
[1771128846648,0.07095519,70467.0,70459.0,0.0233925]
[1771128846877,0.07094937,70473.0,70464.0,0.07095723]
[1771128847076,0.33355893,70480.0,70461.0,0.0233925]
[1771128847251,0.07095,70473.0,70464.0,0.07095809]
[1771128847655,0.0709562,70467.0,70461.0,0.00012969]
[1771128847876,0.07095051,70472.0,70461.0,0.00012969]
[1771128848041,0.07095516,70468.0,70461.0,0.00012969]
[1771128849549,0.07095726,70465.0,70461.0,0.00012969]